fUSD/lending_fUSD_20260608
["ID","MTS","AMOUNT","RATE_DAILY","PERIOD"]
[424414174,1780858241000,-500.0,0.00013699,2]
[424414175,1780858241000,-500.0,0.00013699,2]
[424414176,1780858241000,-500.0,0.00013699,2]
[424414178,1780858241000,-500.0,0.00013699,2]
[424414173,1780858241000,-500.0,0.00013699,2]
[424414181,1780858241000,-500.0,0.00013699,2]
[424414179,1780858241000,-500.0,0.00013699,2]
[424414185,1780858241000,-500.0,0.00013699,2]
[424414177,1780858241000,-500.0,0.00013699,2]
[424414182,1780858241000,-500.0,0.00013699,2]
[424414183,1780858241000,-500.0,0.00013699,2]
[424414180,1780858241000,-500.0,0.00013699,2]
[424414184,1780858241000,-395.85873474,0.00013699,2]
[424414187,1780858241000,-500.0,0.00013699,2]
[424414197,1780858241000,-500.0,0.00013699,2]
[424414186,1780858241000,-500.0,0.00013699,2]
[424414260,1780858242000,-1035.0,0.00013952,2]
[424414252,1780858242000,-500.0,0.00013952,2]
[424414253,1780858242000,-1035.0,0.00013952,2]
[424414257,1780858242000,-1035.0,0.00013952,2]
[424414249,1780858242000,-1035.0,0.00013952,2]
[424414248,1780858242000,-500.0,0.00013952,2]
[424414251,1780858242000,-1035.0,0.00013952,2]
[424414250,1780858242000,-500.0,0.00013952,2]
[424414245,1780858242000,-1035.0,0.00013952,2]
[424414244,1780858242000,-500.0,0.00013952,2]
[424414254,1780858242000,-500.0,0.00013952,2]
[424414259,1780858242000,-1035.0,0.00013952,2]
[424414258,1780858242000,-451.75288582,0.00013952,2]
[424414266,1780858242000,-500.0,0.00013952,2]
[424414255,1780858242000,-1035.0,0.00013952,2]
[424414262,1780858242000,-500.0,0.00013952,2]
[424414261,1780858242000,-1035.0,0.00013952,2]
[424414265,1780858242000,-1035.0,0.00013952,2]
[424414272,1780858242000,-500.0,0.00013952,2]
[424414275,1780858242000,-1035.0,0.00013952,2]
[424414274,1780858242000,-500.0,0.00013952,2]
[424414263,1780858242000,-500.0,0.00013952,2]
[424414264,1780858242000,-1035.0,0.00013952,2]
[424414270,1780858242000,-500.0,0.00013952,2]
[424414268,1780858242000,-1035.0,0.00013952,2]
[424414240,1780858242000,-1035.0,0.00013952,2]
[424414256,1780858242000,-500.0,0.00013952,2]
[424414241,1780858242000,-1035.0,0.00013952,2]
[424414215,1780858242000,-450.0,0.00013699,2]
[424414238,1780858242000,-500.0,0.00013952,2]
[424414267,1780858242000,-500.0,0.00013952,2]
[424414223,1780858242000,-500.0,0.00013881,2]
[424414218,1780858242000,-500.0,0.00013699,2]
[424414220,1780858242000,-166.66,0.00013836,2]
[424414222,1780858242000,-53877.49028151,0.00013866,2]
[424414219,1780858242000,-150.0,0.00013737,2]
[424414216,1780858242000,-500.0,0.00013699,2]
[424414217,1780858242000,-500.0,0.00013699,2]
[424414221,1780858242000,-2162.22008778,0.00013856,2]
[424414225,1780858242000,-83033.79196499,0.00013885,2]
[424414224,1780858242000,-500.0,0.00013881,2]
[424414235,1780858242000,-500.0,0.00013952,2]
[424414226,1780858242000,-500.0,0.00013895,2]
[424414231,1780858242000,-500.0,0.00013952,2]
[424414227,1780858242000,-500.0,0.00013895,2]
[424414234,1780858242000,-500.0,0.00013952,2]
[424414228,1780858242000,-1900.0,0.000139,5]
[424414230,1780858242000,-500.0,0.00013952,2]
[424414229,1780858242000,-1508.0,0.00013937,5]
[424414233,1780858242000,-500.0,0.00013952,2]
[424414232,1780858242000,-500.0,0.00013952,2]
[424414237,1780858242000,-500.0,0.00013952,2]
[424414247,1780858242000,-1035.0,0.00013952,2]
[424414236,1780858242000,-500.0,0.00013952,2]
[424414239,1780858242000,-500.0,0.00013952,2]
[424414243,1780858242000,-1035.0,0.00013952,2]
[424414246,1780858242000,-500.0,0.00013952,2]
[424414242,1780858242000,-1035.0,0.00013952,2]
[424414277,1780858242000,-365.19884206,0.00013952,2]
[424414325,1780858242000,-166.66,0.00014384,2]
[424414276,1780858242000,-500.0,0.00013952,2]
[424414308,1780858242000,-166.66,0.0001411,2]
[424414312,1780858242000,-500.0,0.00014217,2]
[424414317,1780858242000,-166.66,0.00014247,2]
[424414318,1780858242000,-250.0,0.00014285,2]
[424414316,1780858242000,-150.0,0.00014237,2]
[424414327,1780858242000,-1569.84,0.00014497,2]
[424414319,1780858242000,-209.83972274,0.00014332,2]
[424414321,1780858242000,-10544.86067982,0.00014347,2]
[424414320,1780858242000,-350.0,0.00014341,3]
[424414322,1780858242000,-216.068285,0.00014359,2]
[424414326,1780858242000,-150.0,0.00014487,2]
[424414324,1780858242000,-930.92336407,0.00014376,2]
[424414307,1780858242000,-433.0,0.00014094,2]
[424414339,1780858242000,-350.0,0.00014643,2]
[424414329,1780858242000,-336.16585107,0.00014517,2]
[424414328,1780858242000,-434.31,0.00014497,2]
[424414330,1780858242000,-4444.06714415,0.00014519,2]
[424414332,1780858242000,-83033.79196499,0.00014562,2]
[424414333,1780858242000,-500.0,0.00014564,2]
[424414335,1780858242000,-2400.0,0.000146,5]
[424414336,1780858242000,-4920.73950072,0.00014601,2]
[424414338,1780858242000,-350.0,0.00014618,2]
[424414334,1780858242000,-500.0,0.00014564,2]
[424414337,1780858242000,-10265.21082506,0.00014601,2]
[424414340,1780858242000,-500.0,0.00014694,2]
[424414287,1780858242000,-500.0,0.00013952,2]
[424414323,1780858242000,-174.00962,0.00014359,2]
[424414313,1780858242000,-521.36,0.0001422,2]
[424414331,1780858242000,-53877.49028151,0.00014555,2]
[424414311,1780858242000,-500.0,0.00014217,2]
[424414310,1780858242000,-53877.49028151,0.00014211,2]
[424414288,1780858242000,-500.0,0.00013952,2]
[424414278,1780858242000,-150.0,0.00013952,2]
[424414285,1780858242000,-197.96496476,0.00013952,2]
[424414284,1780858242000,-500.0,0.00013952,2]
[424414282,1780858242000,-150.0,0.00013952,2]
[424414280,1780858242000,-150.0,0.00013952,2]
[424414286,1780858242000,-500.0,0.00013952,2]
[424414283,1780858242000,-150.0,0.00013952,2]
[424414281,1780858242000,-150.0,0.00013952,2]
[424414298,1780858242000,-1053.0953843,0.00013952,2]
[424414297,1780858242000,-1035.0,0.00013952,2]
[424414296,1780858242000,-1035.0,0.00013952,2]
[424414279,1780858242000,-1035.0,0.00013952,2]
[424414302,1780858242000,-150.0,0.00013987,2]
[424414300,1780858242000,-166.66,0.00013973,2]
[424414303,1780858242000,-14270.34142765,0.0001399,2]
[424414315,1780858242000,-83033.79196499,0.00014223,2]
[424414304,1780858242000,-1000.0,0.00014036,2]
[424414293,1780858242000,-500.0,0.00013952,2]
[424414314,1780858242000,-500.0,0.00014222,2]
[424414295,1780858242000,-1035.0,0.00013952,2]
[424414290,1780858242000,-500.0,0.00013952,2]
[424414294,1780858242000,-396.94383744,0.00013952,2]
[424414289,1780858242000,-1035.0,0.00013952,2]
[424414309,1780858242000,-4444.06714417,0.00014137,2]
[424414291,1780858242000,-500.0,0.00013952,2]
[424414292,1780858242000,-500.0,0.00013952,2]
[424414388,1780858243000,-500.0,0.00014999,2]
[424414374,1780858243000,-160.88134903,0.00014986,2]
[424414375,1780858243000,-151.0,0.00014986,2]
[424414369,1780858243000,-309.0,0.000149,2]
[424414373,1780858243000,-150.00000012,0.00014986,2]
[424414371,1780858243000,-361.0,0.00014959,2]
[424414372,1780858243000,-407.0,0.00014976,2]
[424414368,1780858243000,-4444.06714415,0.000149,2]
[424414380,1780858243000,-151.0,0.00014997,2]
[424414366,1780858243000,-315.0,0.000149,2]
[424414370,1780858243000,-53877.49028151,0.000149,2]
[424414377,1780858243000,-256.65450087,0.00014986,2]
[424414382,1780858243000,-500.0,0.00014998,2]
[424414386,1780858243000,-500.0,0.00014999,2]
[424414376,1780858243000,-151.0,0.00014986,2]
[424414379,1780858243000,-2162.22008778,0.0001499,2]
[424414378,1780858243000,-2162.22008778,0.0001499,2]
[424414390,1780858243000,-500.0,0.00014999,2]
[424414381,1780858243000,-151.0,0.00014997,2]
[424414389,1780858243000,-500.0,0.00014999,2]
[424414367,1780858243000,-645.0,0.000149,2]
[424414383,1780858243000,-500.0,0.00014998,2]
[424414384,1780858243000,-500.0,0.00014999,2]
[424414363,1780858243000,-443.94586986,0.000149,2]
[424414351,1780858243000,-404.0,0.00014762,2]
[424414364,1780858243000,-83033.79196499,0.000149,2]
[424414391,1780858243000,-500.0,0.00014999,2]
[424414350,1780858243000,-150.0,0.00014737,2]
[424414342,1780858243000,-958.72,0.00014694,2]
[424414341,1780858243000,-500.0,0.00014694,2]
[424414349,1780858243000,-1175.292,0.00014711,2]
[424414344,1780858243000,-500.0,0.00014694,9]
[424414343,1780858243000,-500.0,0.00014694,2]
[424414345,1780858243000,-500.0,0.00014694,2]
[424414348,1780858243000,-400.0,0.000147,5]
[424414346,1780858243000,-500.0,0.00014694,2]
[424414365,1780858243000,-400.0,0.000149,5]
[424414347,1780858243000,-5200.30331593,0.000147,2]
[424414353,1780858243000,-500.0,0.00014849,2]
[424414355,1780858243000,-500.0,0.00014849,2]
[424414352,1780858243000,-400.0,0.000148,5]
[424414354,1780858243000,-567.34991975,0.00014849,2]
[424414357,1780858243000,-500.0,0.00014849,2]
[424414356,1780858243000,-500.0,0.00014849,2]
[424414359,1780858243000,-350.0,0.0001487,4]
[424414358,1780858243000,-237256.24056528,0.0001485,2]
[424414361,1780858243000,-500.0,0.00014899,2]
[424414360,1780858243000,-613.76538141,0.00014899,2]
[424414362,1780858243000,-10000.0,0.000149,2]
[424414393,1780858243000,-500.0,0.00014999,2]
[424414402,1780858243000,-958.72,0.00014999,2]
[424414392,1780858243000,-500.0,0.00014999,2]
[424414425,1780858243000,-958.72,0.00014999,2]
[424414423,1780858243000,-958.72,0.00014999,2]
[424414422,1780858243000,-958.72,0.00014999,2]
[424414431,1780858243000,-500.0,0.00014999,14]
[424414424,1780858243000,-958.72,0.00014999,2]
[424414428,1780858243000,-500.0,0.00014999,11]
[424414426,1780858243000,-958.84332657,0.00014999,2]
[424414427,1780858243000,-500.0,0.00014999,10]
[424414430,1780858243000,-500.0,0.00014999,13]
[424414429,1780858243000,-500.0,0.00014999,12]
[424414420,1780858243000,-958.72,0.00014999,2]
[424414432,1780858243000,-500.0,0.00014999,15]
[424414440,1780858243000,-500.0,0.00014999,2]
[424414437,1780858243000,-231.17,0.00014999,2]
[424414439,1780858243000,-500.0,0.00014999,2]
[424414436,1780858243000,-500.0,0.00014999,2]
[424414433,1780858243000,-500.0,0.00014999,16]
[424414443,1780858243000,-500.0,0.00014999,2]
[424414435,1780858243000,-500.0,0.00014999,2]
[424414442,1780858243000,-500.0,0.00014999,2]
[424414441,1780858243000,-500.0,0.00014999,2]
[424414444,1780858243000,-500.0,0.00014999,2]
[424414438,1780858243000,-500.0,0.00014999,2]
[424414421,1780858243000,-515.126,0.00014999,2]
[424414434,1780858243000,-500.0,0.00014999,2]
[424414418,1780858243000,-500.0,0.00014999,2]
[424414419,1780858243000,-500.0,0.00014999,2]
[424414394,1780858243000,-500.0,0.00014999,2]
[424414401,1780858243000,-264.70591973,0.00014999,2]
[424414399,1780858243000,-500.0,0.00014999,2]
[424414397,1780858243000,-500.0,0.00014999,2]
[424414396,1780858243000,-500.0,0.00014999,2]
[424414395,1780858243000,-500.0,0.00014999,2]
[424414400,1780858243000,-500.0,0.00014999,2]
[424414403,1780858243000,-958.72,0.00014999,2]
[424414405,1780858243000,-958.72,0.00014999,2]
[424414409,1780858243000,-958.72,0.00014999,2]
[424414398,1780858243000,-556.72552336,0.00014999,2]
[424414410,1780858243000,-500.0,0.00014999,2]
[424414407,1780858243000,-958.72,0.00014999,2]
[424414412,1780858243000,-500.0,0.00014999,2]
[424414411,1780858243000,-958.72,0.00014999,2]
[424414406,1780858243000,-500.0,0.00014999,2]
[424414414,1780858243000,-958.72,0.00014999,2]
[424414408,1780858243000,-500.0,0.00014999,2]
[424414413,1780858243000,-958.72,0.00014999,2]
[424414415,1780858243000,-958.72,0.00014999,2]
[424414417,1780858243000,-958.72,0.00014999,2]
[424414404,1780858243000,-500.0,0.00014999,2]
[424414416,1780858243000,-500.0,0.00014999,2]
[424414481,1780858244000,-500.0,0.00014999,2]
[424414488,1780858244000,-500.0,0.00014999,2]
[424414474,1780858244000,-500.0,0.00014999,2]
[424414489,1780858244000,-500.0,0.00014999,2]
[424414484,1780858244000,-500.0,0.00014999,2]
[424414483,1780858244000,-500.0,0.00014999,2]
[424414475,1780858244000,-500.0,0.00014999,2]
[424414480,1780858244000,-500.0,0.00014999,2]
[424414477,1780858244000,-500.0,0.00014999,2]
[424414473,1780858244000,-500.0,0.00014999,2]
[424414487,1780858244000,-500.0,0.00014999,2]
[424414482,1780858244000,-500.0,0.00014999,2]
[424414485,1780858244000,-500.0,0.00014999,2]
[424414500,1780858244000,-500.0,0.00014999,2]
[424414490,1780858244000,-500.0,0.00014999,2]
[424414492,1780858244000,-500.0,0.00014999,2]
[424414491,1780858244000,-500.0,0.00014999,2]
[424414495,1780858244000,-500.0,0.00014999,2]
[424414499,1780858244000,-500.0,0.00014999,2]
[424414496,1780858244000,-500.0,0.00014999,2]
[424414497,1780858244000,-500.0,0.00014999,2]
[424414494,1780858244000,-500.0,0.00014999,2]
[424414498,1780858244000,-500.0,0.00014999,2]
[424414493,1780858244000,-500.0,0.00014999,2]
[424414502,1780858244000,-500.0,0.00014999,2]
[424414478,1780858244000,-500.0,0.00014999,2]
[424414486,1780858244000,-500.0,0.00014999,2]
[424414476,1780858244000,-500.0,0.00014999,2]
[424414450,1780858244000,-500.0,0.00014999,2]
[424414470,1780858244000,-500.0,0.00014999,2]
[424414445,1780858244000,-500.0,0.00014999,2]
[424414455,1780858244000,-500.0,0.00014999,2]
[424414446,1780858244000,-500.0,0.00014999,2]
[424414512,1780858244000,-500.0,0.00014999,2]
[424414448,1780858244000,-500.0,0.00014999,2]
[424414452,1780858244000,-500.0,0.00014999,2]
[424414451,1780858244000,-500.0,0.00014999,2]
[424414449,1780858244000,-500.0,0.00014999,2]
[424414447,1780858244000,-500.0,0.00014999,2]
[424414453,1780858244000,-280.83,0.00014999,2]
[424414454,1780858244000,-500.0,0.00014999,2]
[424414456,1780858244000,-500.0,0.00014999,2]
[424414458,1780858244000,-500.0,0.00014999,2]
[424414457,1780858244000,-500.0,0.00014999,2]
[424414459,1780858244000,-500.0,0.00014999,2]
[424414460,1780858244000,-500.0,0.00014999,2]
[424414466,1780858244000,-500.0,0.00014999,2]
[424414467,1780858244000,-500.0,0.00014999,2]
[424414461,1780858244000,-500.0,0.00014999,2]
[424414464,1780858244000,-500.0,0.00014999,2]
[424414463,1780858244000,-500.0,0.00014999,2]
[424414465,1780858244000,-500.0,0.00014999,2]
[424414462,1780858244000,-500.0,0.00014999,2]
[424414469,1780858244000,-500.0,0.00014999,2]
[424414479,1780858244000,-500.0,0.00014999,2]
[424414468,1780858244000,-500.0,0.00014999,2]
[424414472,1780858244000,-500.0,0.00014999,2]
[424414471,1780858244000,-500.0,0.00014999,2]
[424414513,1780858244000,-500.0,0.00014999,2]
[424414553,1780858244000,-2000.0,0.00015,2]
[424414504,1780858244000,-500.0,0.00014999,2]
[424414536,1780858244000,-500.0,0.00014999,2]
[424414531,1780858244000,-500.0,0.00014999,2]
[424414540,1780858244000,-500.0,0.00014999,2]
[424414539,1780858244000,-500.0,0.00014999,2]
[424414543,1780858244000,-500.0,0.00014999,2]
[424414541,1780858244000,-500.0,0.00014999,2]
[424414547,1780858244000,-300.0,0.00014999,2]
[424414542,1780858244000,-500.0,0.00014999,2]
[424414550,1780858244000,-2000.0,0.00015,2]
[424414551,1780858244000,-250.0,0.00015,2]
[424414549,1780858244000,-747.0,0.00015,5]
[424414548,1780858244000,-666.0,0.00014999,2]
[424414533,1780858244000,-500.0,0.00014999,2]
[424414544,1780858244000,-193.0,0.00014999,2]
[424414563,1780858244000,-7642.83003019,0.00015,2]
[424414557,1780858244000,-389.29,0.00015,2]
[424414555,1780858244000,-1734.3,0.00015,2]
[424414554,1780858244000,-2000.0,0.00015,2]
[424414556,1780858244000,-2000.0,0.00015,2]
[424414552,1780858244000,-7263991.10720088,0.00015,2]
[424414558,1780858244000,-1433.58,0.00015,2]
[424414560,1780858244000,-8099.62175,0.00015,2]
[424414561,1780858244000,-1554417.92004437,0.00015,2]
[424414562,1780858244000,-150.0,0.00015,2]
[424414559,1780858244000,-2080.83702791,0.00015,2]
[424414503,1780858244000,-500.0,0.00014999,2]
[424414545,1780858244000,-300.0,0.00014999,2]
[424414532,1780858244000,-500.0,0.00014999,2]
[424414546,1780858244000,-666.0,0.00014999,2]
[424414534,1780858244000,-500.0,0.00014999,2]
[424414501,1780858244000,-500.0,0.00014999,2]
[424414535,1780858244000,-500.0,0.00014999,2]
[424414509,1780858244000,-500.0,0.00014999,2]
[424414510,1780858244000,-500.0,0.00014999,2]
[424414511,1780858244000,-500.0,0.00014999,2]
[424414508,1780858244000,-500.0,0.00014999,2]
[424414505,1780858244000,-500.0,0.00014999,2]
[424414507,1780858244000,-500.0,0.00014999,2]
[424414506,1780858244000,-500.0,0.00014999,2]
[424414515,1780858244000,-500.0,0.00014999,2]
[424414524,1780858244000,-500.0,0.00014999,2]
[424414523,1780858244000,-500.0,0.00014999,2]
[424414516,1780858244000,-500.0,0.00014999,2]
[424414525,1780858244000,-500.0,0.00014999,2]
[424414514,1780858244000,-500.0,0.00014999,2]
[424414518,1780858244000,-500.0,0.00014999,2]
[424414530,1780858244000,-500.0,0.00014999,2]
[424414528,1780858244000,-500.0,0.00014999,2]
[424414529,1780858244000,-500.0,0.00014999,2]
[424414538,1780858244000,-500.0,0.00014999,2]
[424414537,1780858244000,-500.0,0.00014999,2]
[424414527,1780858244000,-500.0,0.00014999,2]
[424414526,1780858244000,-500.0,0.00014999,2]
[424414522,1780858244000,-500.0,0.00014999,2]
[424414519,1780858244000,-500.0,0.00014999,2]
[424414520,1780858244000,-500.0,0.00014999,2]
[424414517,1780858244000,-500.0,0.00014999,2]
[424414521,1780858244000,-500.0,0.00014999,2]
[424414616,1780858245000,-193.0,0.00015,2]
[424414611,1780858245000,-151.0,0.00015,2]
[424414606,1780858245000,-313.86713,0.00015,2]
[424414605,1780858245000,-313.86713,0.00015,2]
[424414598,1780858245000,-313.86713,0.00015,2]
[424414600,1780858245000,-313.86713,0.00015,2]
[424414597,1780858245000,-1107.53544026,0.00015,2]
[424414596,1780858245000,-209.83972274,0.00015,2]
[424414592,1780858245000,-151.0,0.00015,2]
[424414594,1780858245000,-151.0,0.00015,2]
[424414601,1780858245000,-313.86713,0.00015,2]
[424414617,1780858245000,-193.0,0.00015,2]
[424414599,1780858245000,-313.86713,0.00015,2]
[424414609,1780858245000,-151.0,0.00015,2]
[424414624,1780858245000,-305.66749976,0.00015017,10]
[424414613,1780858245000,-1040.0,0.00015,2]
[424414610,1780858245000,-151.0,0.00015,2]
[424414608,1780858245000,-151.0,0.00015,2]
[424414612,1780858245000,-151.0,0.00015,2]
[424414614,1780858245000,-151.0,0.00015,2]
[424414615,1780858245000,-151.0,0.00015,2]
[424414618,1780858245000,-193.0,0.00015,2]
[424414620,1780858245000,-193.0,0.00015,2]
[424414622,1780858245000,-151.0,0.00015,2]
[424414621,1780858245000,-193.0,0.00015,2]
[424414619,1780858245000,-193.0,0.00015,2]
[424414626,1780858245000,-179.80441162,0.00015017,10]
[424414628,1780858245000,-329.63798444,0.00015017,2]
[424414603,1780858245000,-313.86713,0.00015,2]
[424414607,1780858245000,-151.0,0.00015,2]
[424414595,1780858245000,-1250.5723388,0.00015,2]
[424414565,1780858245000,-384.79,0.00015,2]
[424414593,1780858245000,-151.0,0.00015,2]
[424414623,1780858245000,-350.0,0.00015014,3]
[424414564,1780858245000,-10210.96610356,0.00015,2]
[424414566,1780858245000,-150.66997503,0.00015,2]
[424414572,1780858245000,-1203.83,0.00015,2]
[424414568,1780858245000,-2000.0,0.00015,2]
[424414570,1780858245000,-1856.39,0.00015,2]
[424414573,1780858245000,-43434.4501433,0.00015,2]
[424414577,1780858245000,-1752.63,0.00015,2]
[424414567,1780858245000,-2000.0,0.00015,2]
[424414571,1780858245000,-150.0,0.00015,2]
[424414576,1780858245000,-1000.0,0.00015,2]
[424414569,1780858245000,-815.34,0.00015,2]
[424414575,1780858245000,-762410.9282441,0.00015,2]
[424414574,1780858245000,-151.0,0.00015,2]
[424414579,1780858245000,-500.0,0.00015,2]
[424414589,1780858245000,-151.0,0.00015,2]
[424414590,1780858245000,-151.0,0.00015,2]
[424414581,1780858245000,-200.0,0.00015,2]
[424414578,1780858245000,-1200.0,0.00015,2]
[424414580,1780858245000,-300.0,0.00015,2]
[424414582,1780858245000,-22759.5242592,0.00015,2]
[424414584,1780858245000,-151.0,0.00015,2]
[424414585,1780858245000,-11674.510837,0.00015,2]
[424414586,1780858245000,-151.0,0.00015,2]
[424414587,1780858245000,-151.0,0.00015,2]
[424414583,1780858245000,-151.0,0.00015,2]
[424414588,1780858245000,-177.50346,0.00015,2]
[424414591,1780858245000,-151.0,0.00015,2]
[424414602,1780858245000,-313.86713,0.00015,2]
[424414604,1780858245000,-272.30444784,0.00015,2]
[424414627,1780858245000,-254.72291647,0.00015017,10]
[424414671,1780858245000,-1279.005,0.00015538,2]
[424414625,1780858245000,-203.77833318,0.00015017,10]
[424414658,1780858245000,-299.99,0.0001531,2]
[424414660,1780858245000,-9999.99,0.0001531,2]
[424414665,1780858245000,-7642.83003019,0.000155,2]
[424414662,1780858245000,-4999.99,0.0001531,2]
[424414663,1780858245000,-736.0,0.00015385,2]
[424414670,1780858245000,-382.0,0.00015538,2]
[424414672,1780858245000,-1236.828,0.00015538,2]
[424414674,1780858245000,-419.0,0.00015538,2]
[424414673,1780858245000,-6073.0,0.00015538,2]
[424414693,1780858245000,-290.076892,0.000159,2]
[424414678,1780858245000,-10210.96610356,0.000156,2]
[424414677,1780858245000,-7642.83003019,0.000156,2]
[424414679,1780858245000,-200.0,0.00015609,2]
[424414681,1780858245000,-150.0,0.00015615,2]
[424414682,1780858245000,-199.5,0.00015699,2]
[424414680,1780858245000,-250.0,0.00015615,2]
[424414676,1780858245000,-1555.5,0.00015574,2]
[424414675,1780858245000,-1068.11,0.00015574,2]
[424414684,1780858245000,-7642.83003019,0.000158,2]
[424414685,1780858245000,-10210.96610356,0.000158,2]
[424414686,1780858245000,-254.72291647,0.00015839,10]
[424414683,1780858245000,-350.0,0.00015783,5]
[424414687,1780858245000,-7642.83003019,0.000159,2]
[424414694,1780858245000,-290.076892,0.000159,2]
[424414690,1780858245000,-151.0,0.000159,2]
[424414688,1780858245000,-10210.96610356,0.000159,2]
[424414689,1780858245000,-151.0,0.000159,2]
[424414691,1780858245000,-151.0,0.000159,2]
[424414629,1780858245000,-1030.0,0.00015026,2]
[424414664,1780858245000,-200.0,0.00015455,2]
[424414657,1780858245000,-999.99,0.0001531,2]
[424414692,1780858245000,-290.076892,0.000159,2]
[424414661,1780858245000,-9999.99,0.0001531,2]
[424414659,1780858245000,-24999.99,0.0001531,2]
[424414631,1780858245000,-1580.22,0.00015041,2]
[424414632,1780858245000,-413.20051196,0.00015042,2]
[424414635,1780858245000,-290.076892,0.00015068,2]
[424414630,1780858245000,-1500.0,0.00015026,2]
[424414637,1780858245000,-290.076892,0.00015068,2]
[424414636,1780858245000,-290.076892,0.00015068,2]
[424414638,1780858245000,-290.076892,0.00015068,2]
[424414633,1780858245000,-290.076892,0.00015068,2]
[424414634,1780858245000,-290.076892,0.00015068,2]
[424414640,1780858245000,-290.076892,0.00015068,2]
[424414639,1780858245000,-290.076892,0.00015068,2]
[424414643,1780858245000,-350.0,0.00015113,3]
[424414653,1780858245000,-150.99,0.0001531,2]
[424414650,1780858245000,-10210.96610356,0.000153,2]
[424414641,1780858245000,-900.0,0.00015068,2]
[424414645,1780858245000,-350.0,0.0001516,2]
[424414647,1780858245000,-10210.96610356,0.000152,2]
[424414655,1780858245000,-2057.46,0.0001531,2]
[424414669,1780858245000,-3554.0,0.00015538,2]
[424414667,1780858245000,-1358.0,0.00015538,2]
[424414666,1780858245000,-10210.96610356,0.000155,2]
[424414649,1780858245000,-7642.83003019,0.000153,2]
[424414656,1780858245000,-9999.99,0.0001531,2]
[424414652,1780858245000,-1218.61,0.0001531,2]
[424414654,1780858245000,-558.92,0.0001531,2]
[424414644,1780858245000,-200.0,0.0001515,2]
[424414648,1780858245000,-162.42,0.000153,14]
[424414646,1780858245000,-7642.83003019,0.000152,2]
[424414642,1780858245000,-1505.13,0.00015101,2]
[424414651,1780858245000,-200.0,0.00015301,2]
[424414737,1780858246000,-229.2,0.00016438,2]
[424414740,1780858246000,-151.0,0.00016438,2]
[424414739,1780858246000,-151.0,0.00016438,2]
[424414736,1780858246000,-1175.4,0.00016438,2]
[424414738,1780858246000,-151.0,0.00016438,2]
[424414727,1780858246000,-163.66,0.00016285,2]
[424414733,1780858246000,-1580.22,0.00016409,2]
[424414734,1780858246000,-350.0,0.00016431,4]
[424414732,1780858246000,-10210.96610356,0.000164,2]
[424414731,1780858246000,-7642.83003019,0.000164,2]
[424414728,1780858246000,-2000.0,0.00016295,2]
[424414735,1780858246000,-300.0,0.00016437,2]
[424414741,1780858246000,-163.055595,0.00016438,2]
[424414757,1780858246000,-2200.74357,0.00016438,2]